Cogmind - Beta 17 @@@ ROGUE MODE // 2026.06.28 @ 16:29:24 Player: Pitt Result: Destroyed by G-47 Trooper with Particle Gun Performance ------------- Evolutions (2) 1000 Regions Visited (3) 600 Robots Destroyed (37) 185 Value Destroyed (664) 664 Prototype IDs (0) 0 Alien Tech Used (0) 0 Bonus (0) 0 TOTAL SCORE: 2449 Bonus ------- None Cogmind --------- Core Integrity 0/550 Matter 290/300 Energy 85/100 System Corruption 0% Temperature Cool (9) Movement Core (250) Ox4 Location -8/Materials Parts ------- > --- POWER (2) -------- (None) > --- PROPULSION (4) --- (None) > --- UTILITY (3) ------ Medium Storage Unit Advanced Visual Processing Unit > --- WEAPON (2) ------- Autogun > --- INVENTORY (10) --- Heat Sink Improved Heat Sink Large Storage Unit Structural Scanner Improved Terrain Scanner Targeting Computer Targeting Computer Recalibrator Datajack Mining Laser Peak State ------------ > --- POWER ------------ Light Ion Engine > --- PROPULSION ------- Hover Unit Hover Unit Improved Hover Unit > --- UTILITY ---------- Medium Storage Unit Sensor Array Improved Terrain Scanner > --- WEAPON ----------- Beam Rifle Beam Rifle > --- INVENTORY -------- Light Ion Engine Improved Hover Unit Large Storage Unit Structural Scanner Seismic Detector Targeting Computer Recalibrator Datajack Mining Laser [Rating: 15] Favorites ----------- Power Ion Engine Engine Ion Engine Propulsion Compact Wheel Treads Light Treads Wheel Compact Wheel Hover Unit Hover Unit Utility Medium Storage Unit Device Improved Terrain Scanner Storage Medium Storage Unit Processor Transport Network Coupler Weapon Medium Laser Energy Gun Medium Laser Ballistic Gun Light Assault Rifle Special Weapon Mining Laser Impact Weapon Maul Special Melee Weapon Datajack Build | -11 -10 -9 -8 ------- Run | Yrd Mat Mat Mat Slots Evolved 4 | . . 2 2 Power 1 | . . . 1 Propulsion 2 | . . 1 1 Utility 1 | . . 1 . Weapon . | . . . . Parts Attached 32 | 8 8 14 2 Power 3 | 1 1 1 . Engine 3 | 1 1 1 . Core . | . . . . Reactor . | . . . . Propulsion 10 | 3 2 5 . Treads 1 | . . 1 . Leg . | . . . . Wheel 5 | 3 . 2 . Hover 4 | . 2 2 . Flight . | . . . . Utility 9 | 2 2 4 1 Device 6 | 2 1 3 . Storage 1 | . 1 . . Processor 2 | . . 1 1 Hackware . | . . . . Protection . | . . . . Artifact . | . . . . Weapon 10 | 2 3 4 1 Energy Gun 3 | 1 1 1 . Energy Cannon . | . . . . Ballistic Gun 3 | 1 1 . 1 Ballistic Cannon . | . . . . Launcher . | . . . . Special Weapon 1 | . 1 . . Impact Weapon 2 | . . 2 . Slashing Weapon . | . . . . Piercing Weapon . | . . . . Special Melee Weapon 1 | . . 1 . Unidentified Prototypes . | . . . . Parts Lost 16 | . . 10 6 Power 2 | . . 2 . Propulsion 6 | . . 3 3 Utility 4 | . . 3 1 Weapon 4 | . . 2 2 Highest Loss Streak 7 | . . 7 4 To Critical Strikes . | . . . . Average Backups 8 | 3 8 9 10 Power . | 1 1 . . Propulsion 1 | 1 2 . . Utility 4 | . 2 5 7 Weapon . | . 1 1 1 Tool/Special . | . . . . Unused Backups 14 | 2 6 . 6 Power 1 | 1 . . . Propulsion 6 | 1 5 . . Utility 7 | . 1 . 6 Weapon . | . . . . Tool/Special . | . . . . Average Slot Usage (%) 86 | . 99 77 47 Engine 9 | . 13 5 . Treads 1 | . . 3 6 Wheel 14 | . 25 . 9 Hover 9 | . 1 21 . Device 13 | . 17 11 . Storage 10 | . 10 11 9 Processor 2 | . . 3 9 Energy Gun 10 | . 14 7 . Ballistic Gun 6 | . 11 . . Special Weapon 2 | . 2 4 . Impact Weapon 3 | . . 5 9 Peak Build Rating 15 | 9 10 15 9 Average Rating 9 | 6 9 10 7 On Entrance 6 | . 9 9 9 Avg Prop Armor Cover (%) 14 | . . 11 17 Naked Turns . | . . . . Heaviest Build 21 | 10 19 21 16 Greatest Support 32 | 32 26 20 20 Greatest Overweight (x) 5 | . 1 3 5 Average Overweight (x) . | . . . . Largest Inventory Capacity 10 | 5 10 10 10 Average Capacity 8 | 5 8 10 10 Most Carried 10 | 5 10 10 10 Average Carried 8 | 3 8 9 10 Final Capacity 10 | 5 10 10 10 Final Carried 10 | 5 10 10 10 Class Distribution -------------------- 72% | Mutant 27% | Scavenger-Mutant Dominant Class ---------------- Mutant | -10/Materials Scavenger-Mutant | -9/Materials Scavenger-Mutant | -8/Materials Resources | -11 -10 -9 -8 ----------- Run | Yrd Mat Mat Mat Matter Collected 659 | 305 81 258 15 Remotely . | . . . . Salvage Created 1051 | 233 239 288 291 Parts 53 | 23 21 6 3 Haulers Intercepted . | . . . . Recyclers Shooed 1 | . 1 . . Parts Field Recycled . | . . . . Retrieved Matter . | . . . . Parts Self-Destructed . | . . . . Prevented . | . . . . Parts Restored . | . . . . Kills | -11 -10 -9 -8 ------- Run | Yrd Mat Mat Mat Combat Hostiles Destroyed 15 | . 6 5 4 Melee 2 | . . 1 1 Guns 6 | . 6 . . Classes Destroyed 11 | 3 4 3 1 Worker 2 | 1 . 1 . Builder 1 | . . 1 . Tunneler 9 | 8 1 . . Recycler 3 | 1 1 . 1 Mechanic 2 | . 1 . 1 Operator 3 | . 1 1 1 Watcher 2 | . 1 1 . Swarmer 6 | . 6 . . Grunt 7 | . . 4 3 Sentry 1 | . . 1 . Hunter 1 | . . . 1 Best Kill Streak 5 | 5 4 3 4 Combat Bots Only 3 | . 3 3 2 Max Kills in Single Turn 2 | 2 1 1 1 Gunslinging . | . . . . Exploded . | . . . . Melee 1 | . . 1 1 Uniques/NPCs Destroyed . | . . . . Combat | -11 -10 -9 -8 -------- Run | Yrd Mat Mat Mat Hostile Shots Fired 229 | . 33 87 109 Missed 57 | . 9 20 28 Hits 172 | . 24 67 81 Projectile 172 | . 24 67 81 Critical Strikes 5 | . 1 3 1 Damage Taken 2170 | . 210 903 1057 Core 913 | . 48 314 551 Absorbed by Shields . | . . . . Regen/Repaired (Parts) 84 | . 59 25 . Core Remaining (%) 67 | 100 80 21 . Volleys Fired 73 | 25 34 14 . Largest 2 | 2 2 2 . Hottest 112 | 70 100 112 . Shots Fired 134 | 50 63 21 . Gun 125 | 50 58 17 . Cannon . | . . . . Launcher . | . . . . Special 9 | . 5 4 . Kinetic 54 | 25 29 . . Thermal 80 | 25 34 21 . Explosive . | . . . . Electromagnetic . | . . . . Robot Hit Streak 10 | 7 10 7 . Robot Miss Streak 4 | 2 4 2 . Penetration Max . | . . . . Secondary Targets 1 | . 1 . . Max Gunslinging Chain 1 | . 1 . . Shots Hit Robots 107 | 29 34 28 16 Core Hits 34 | 13 15 5 1 Critical Kills 1 | . . . 1 Critical Parts Destroyed 5 | . . 2 3 Critical Strikes 8 | . 1 3 4 Burn 2 | . 1 1 . Smash 6 | . . 2 4 Melee Attacks 44 | . . 21 23 Impact 43 | . . 20 23 Slashing . | . . . . Piercing . | . . . . Sneak Attacks 9 | . . 6 3 Combat Hostiles 1 | . . 1 . Follow-up Attacks . | . . . . Damage Inflicted 2277 | 284 369 916 708 Guns 826 | 284 369 173 . Cannons . | . . . . Explosions . | . . . . Melee 1403 | . . 695 708 Ramming . | . . . . Kinetic 252 | 123 129 . . Thermal 622 | 161 240 221 . Explosive . | . . . . Electromagnetic . | . . . . Impact 1403 | . . 695 708 Slashing . | . . . . Piercing . | . . . . Highest Corruption . | . . . . Average Corruption . | . . . . Corruption Purged . | . . . . Corruption Blocked . | . . . . Overload Shots . | . . . . Overflow Damage 579 | . . 263 316 Projectiles 14 | . . 14 . Explosions . | . . . . Melee 565 | . . 249 316 Knockbacks 7 | . . 4 3 Impact 7 | . . 4 3 Kinetic . | . . . . Secondary . | . . . . Self-Inflicted Damage . | . . . . Shots . | . . . . Rammed . | . . . . Targets Rammed . | . . . . Kicked . | . . . . Crushed . | . . . . Highest Temperature 230 | 160 130 230 . Average Temperature 55 | 54 41 82 . Received Heat Transfer 873 | . 9 495 369 Siege Activations . | . . . . Martial Activations . | . . . . Shielding Activations . | . . . . Robots Disrupted . | . . . . Combat Hostiles . | . . . . Robots Corrupted 9 | . . 5 4 Combat Hostiles 7 | . . 4 3 Parts Fried 17 | . . 10 7 Impact Corruptions 22 | . . 12 10 Robots Melted . | . . . . Combat Hostiles . | . . . . Parts Melted 2 | 1 1 . . Heat Transferred 1876 | 481 777 618 . Parts Sabotaged . | . . . . Parts Stolen . | . . . . Parts Stripped . | . . . . Power Chain Reactions . | . . . . Alert | -11 -10 -9 -8 ------- Run | Yrd Mat Mat Mat Maximum Alert Level . | . . . . Low Security (%) 100 | 100 100 100 100 Level 1 . | . . . . Level 2 . | . . . . Level 3 . | . . . . Level 4 . | . . . . Level 5 . | . . . . High Security . | . . . . Max Security . | . . . . Peak Influence 148 | 15 88 139 148 Initial 43 | . 3 22 43 Average 33 | 1 22 46 83 Influence Increases 782 | 50 247 270 215 Destroy 0b10 Robot/C 300 | . 120 100 80 Destroy 0b10 Robot/NC 120 | 50 25 30 15 Destroy Leader 84 | . 22 32 30 Successful Hack 46 | . 32 14 . Disable Machine 30 | . 15 . 15 Destroy Structure 7 | . 3 4 . Partial Spotted 15 | . . 15 . Lose Combat Pursuer 180 | . 30 75 75 Influence Decreases 664 | 45 197 221 201 Entered New Map 96 | . 2 33 61 Time Decay 498 | 45 195 178 80 Lost Part 70 | . . 10 60 Squads Dispatched 5 | . . 1 4 Investigation 1 | . . . 1 Extermination . | . . . . Reinforcement 4 | . . 1 3 Assault . | . . . . Garrison . | . . . . Intercept . | . . . . Searches Triggered . | . . . . Construction Impeded . | . . . . Haulers Reinforced . | . . . . Active Scanning Responses . | . . . . Cargo Convoy Interrupts . | . . . . Stealth | -11 -10 -9 -8 --------- Run | Yrd Mat Mat Mat Distress Signals 4 | . . 3 1 Communications Jammed . | . . . . Distress Signals . | . . . . Times Spotted 41 | . 14 14 13 Peak Tracking Total 8 | . 3 7 8 Tactical Retreats 7 | . 2 3 2 Traps | -11 -10 -9 -8 ------- Run | Yrd Mat Mat Mat Traps Triggered 1 | . . . 1 Indirectly . | . . . . Trap Hack Attempts . | . . . . Triggered . | . . . . Disarmed . | . . . . Reprogrammed . | . . . . Reused . | . . . . Traps Extracted . | . . . . Installed . | . . . . Triggered . | . . . . Machines | -11 -10 -9 -8 ---------- Run | Yrd Mat Mat Mat Machines Disabled 3 | . 2 . 1 Max in Single Turn 1 | . 1 . 1 Machines Repaired . | . . . . Machines Dismantled . | . . . . Machines Sabotaged . | . . . . Overloaded Fab Kills . | . . . . Hacking | -11 -10 -9 -8 --------- Run | Yrd Mat Mat Mat Machines Accessed 12 | . 4 7 1 Terminals 8 | . 3 4 1 Fabricators . | . . . . Repair Stations 2 | . 1 1 . Recycling Units 2 | . . 2 . Scanalyzers . | . . . . Garrison Access . | . . . . Total Hacks 36 | . 14 20 2 Successful 20 | . 9 11 . Failed 16 | . 5 9 2 Catastrophic 5 | . 3 2 . Database Lockouts . | . . . . Manual 21 | . 8 12 1 Terminals 21 | . 8 11 2 Fabricators . | . . . . Repair Stations 8 | . 6 2 . Recycling Units 7 | . . 7 . Scanalyzers . | . . . . Garrison Access . | . . . . Terminal Hacks 3 | . 1 2 . Terminal Index 2 | . 1 1 . Alert Level 1 | . . 1 . Fabricator Hacks . | . . . . Repair Station Hacks 7 | . 5 2 . Scan Component 4 | . 3 1 . Repair 3 | . 2 1 . Recycling Unit Hacks 3 | . . 3 . Report Inventory 2 | . . 2 . Retrieve Matter 1 | . . 1 . Scanalyzer . | . . . . Garrison Access Hacks . | . . . . Unauthorized Hacks 7 | . 3 4 . Terminals 4 | . 3 1 . Assimilate 1 | . 1 . . Botnet 1 | . 1 . . Operators 2 | . 1 1 . Fabricators . | . . . . Repair Stations . | . . . . Recycling Units 3 | . . 3 . Reject 1 | . . 1 . Mask 2 | . . 2 . Scanalyzers . | . . . . Garrison Access . | . . . . Data Cores Recovered . | . . . . Used . | . . . . Hacking Detections 10 | . 4 5 1 Full Trace Events 1 | . 1 . . Feedback Events . | . . . . Feedback Blocked . | . . . . Robot Schematics Acquired . | . . . . Robots Built . | . . . . Authchips . | . . . . Time . | . . . . Total Robot Build Rating . | . . . . Part Schematics Acquired . | . . . . Parts Built . | . . . . Authchips . | . . . . Time . | . . . . Total Part Build Rating . | . . . . Part Studies Acquired . | . . . . Parts Repaired 3 | . 2 1 . Time 78 | . 52 26 . Parts Recycled . | . . . . Recycled Matter . | . . . . Retrieved Matter . | . . . . Retrieved Components . | . . . . Parts Scanalyzed . | . . . . Part Schematics Acquired . | . . . . Parts Damaged . | . . . . Bothacking | -11 -10 -9 -8 ------------ Run | Yrd Mat Mat Mat Used RIF Installer . | . . . . Robots Hacked 1 | . . 1 . Non-combat 1 | . . 1 . Combat . | . . . . Robot Hacks Applied 1 | . . 1 . no_distress 1 | . . 1 . Relay Couplers Released . | . . . . Fabnet Peak Effective % . | . . . . Robots Rewired . | . . . . Allies Hacked . | . . . . Hacks Repelled . | . . . . Allies | -11 -10 -9 -8 -------- Run | Yrd Mat Mat Mat Total Allies . | . . . . Largest Group . | . . . . Highest-Rated Group . | . . . . Highest-Rated Ally . | . . . . Total Orders . | . . . . Ally Attacks . | . . . . Total Damage . | . . . . Kills . | . . . . Allies Corrupted . | . . . . Allies Melted . | . . . . Intel | -11 -10 -9 -8 ------- Run | Yrd Mat Mat Mat Active Infowar (turns) 2496 | 146 1229 948 173 Optics 15 | . . . 15 Sensors 410 | . . 410 . Terrain 1464 | 129 1034 301 . Structural 197 | . 178 19 . Seismic 724 | 146 300 278 . T.N.C. 532 | . . 369 163 Robot Analysis Total . | . . . . Derelict Logs Recovered . | . . . . Drone Launches . | . . . . Drone Recoveries . | . . . . Exploration | -11 -10 -9 -8 ------------- Run | Yrd Mat Mat Mat Turns Passed 2664 | 251 1229 1011 173 Spaces Moved 944 | 177 351 343 73 Core 34 | 10 . 9 15 Treads 56 | . . 56 . Legs . | . . . . Wheels 572 | 167 301 46 58 Hover 282 | . 50 232 . Flight . | . . . . Fastest Speed 50 | 50 90 52 80 Average Speed 100 | 91 93 110 114 Slowest Speed 300 | 100 116 200 300 Overloaded Moves . | . . . . Propulsion Burnouts . | . . . . Robots Hopped . | . . . . Potential Cave-ins . | . . . . Cave-ins Triggered . | . . . . Exploration Rate (%) 23 | 5 43 30 14 Regions Visited 3 Branch Regions . Pre-discovered Areas . | . . . . Known Exits Taken . | . . . . Unknown Exits Taken 3 | 1 1 1 . Scrap Searched . | . . . . Spaces Dug 7 | . 3 4 . Terrain Destroyed 7 | . 3 4 . Melee 2 | . . 2 . Projectile 5 | . 3 2 . AOE . | . . . . Terrain Rammed . | . . . . Walls Destroyed . | . . . . Machines Disabled . | . . . . Actions | -11 -10 -9 -8 --------- Run | Yrd Mat Mat Mat Total 2420 | 219 1184 901 116 Wait 1267 | . 760 492 15 Move 941 | 176 350 342 73 Hop . | . . . . Pick Up 26 | 7 14 4 1 Fast Attach 21 | 7 4 8 2 Attach 5 | . . 5 . Detach 3 | . 1 2 . Swap 23 | 1 9 12 1 Drop 17 | 3 12 1 1 Fire 73 | 25 34 14 . Melee 44 | . . 21 23 Ram . | . . . . Kick . | . . . . Crush . | . . . . Escape Stasis . | . . . . Rewire . | . . . . Trap . | . . . . Miscellaneous . | . . . . Route ------- -11/Scrapyard -10/Materials (discovered 2 exits: *Mat / [*Min]) -9/Materials -8/Materials History --------- Turn | Location | Event 22 | -11/Scrapyard | Discovered new exit (range 15) 252 | -11/Scrapyard | Entered Materials 301 | -10/Materials | Build established: Mutant 677 | -10/Materials | Repaired Wheel 704 | -10/Materials | Repaired Ion Engine 1318 | -10/Materials | Discovered new exit (range 7) 1361 | -10/Materials | Discovered new exit (range 8) 1481 | -10/Materials | Entered another Materials area 1481 | -9/Materials | Evolved 2 slots: Propulsion x1, Utility x1 1636 | -9/Materials | Repaired Mining Laser 1698 | -9/Materials | Build established: Scavenger-Mutant 2055 | -9/Materials | Core integrity fell below 50% 2079 | -9/Materials | Lost 7 parts (1p2n2u2w) 2307 | -9/Materials | Build established: Mutant 2480 | -9/Materials | Discovered new exit (range 8) 2492 | -9/Materials | Entered another Materials area 2492 | -8/Materials | Evolved 2 slots: Power x1, Propulsion x1 2633 | -8/Materials | Lost 4 parts (3n1w) 2633 | -8/Materials | Core integrity fell below 50% 2645 | -8/Materials | Core integrity fell below 20% 2665 | -8/Materials | Destroyed by G-47 Trooper with Particle Gun Last Messages --------------- 02630_ K-01 Serf collects debris. 02632_ U-05 Engineer builds a Door. 02632_ Slug penetrates U-05 Engineer. 02632_ K-01 Serf collects debris. 02632_ Penetrated by Slug. 02635_ U-05 Engineer destroyed. 02636_ K-01 Serf collects debris. 02637_ H-55 Commando suffers critical hit (Smash). 02637_ H-55 Commando destroyed. 02638_ Penetrated by Slug. 02639_ K-01 Serf collects debris. 02643_ U-05 Engineer builds a Door. 02644_ Slug penetrates Door. 02647_ U-05 Engineer builds a Door. 02650_ Acquired Adv. Visual Processing Unit. 02652_ Slug penetrates Wall. 02655_ Transport Network Coupler destroyed. 02655_ Slug penetrates Wall. 02655_ Maul destroyed. 02664_ Acquired Autogun. Map ----- +----------------------------------------------------+ | ?????????????????????????????? | | ?????????????????????????????? | | ##### #####????????????????????????????????????? | | ????# #????????????????????????????????????????? | | ????# #????????????????????????????????????????? | | ????# #????????????????????????????????????????? | | ????# #????????????????????????????????????????? | | ????# #????????????????????????????????????????? | | ???## ##?????????#####?????????????????????????? | | #### ########### #?????????????????????????? | | ! #?????????????????????????? | | ! #?????????????????????????? | | #?????????????????????????? | | #### ### #?????????????????????????? | | ???###+###?# % #?????????????????????????? | | ???????????# #?????????????????????????? | | ???????????# """ ###########???????????????? | | ???????????# """ % ## "T" #???????????????? | | ???????????# """ %## ! #???????????????? | | ???????????# ## = #???????????????? | | ???????????# ## #???????????????? | | ???????????# !*# w ### ???????????? | | ???????????# =%%+% "" + #?????????? | | ???????????# " !%#g "" ###?????????????? | | ???????????# """"" *# """ #???????????????? | | ???????????# """"" #@ #???????????????? | | ???????????# """"" ##########???????????????? | | ???????????# ?""" #????????????????????????? | | ???????????# ? #????????????????????????? | | ??????????? ?? #????????????????????????? | | ??????????? ?? ! #????????????????????????? | | ???????????? ######+##????????????????????????? | | ????????????### ????? ??????????????????????????? | | ??????????????#?????? ??????????????????????????? | | ????????????????????? ??????????????????????????? | | ????????????????????? ??????????????????????????? | | ????????????????????? ??????????????????????????? | | ?????????????????????????????????????????????????? | | ?????????????????????????????????????????????????? | | ?????????????????????????????????????????????????? | | ?????????????????????????????????????????????????? | | ?????????????????????????????????????????????????? | | ?????????????????????????????????????????????????? | | ?????????????????????????????????????????????????? | | ?????????????????????????????????????????????????? | | ?????????????????????????????????????????????????? | | ?????????????????????????????????????????????????? | | ?????????????????????????????????????????????????? | | ?????????????????????????????????????????????????? | | ?????????????????????????????????????????????????? | +----------------------------------------------------+ Best States ------------- Heat Dissipation 38 Energy Generation 10 Energy Capacity 250 Matter Stores 300 Matter Capacity 300 Sight Range 20 Robot Scan Range 14 Terrain Scan Range 16 Terrain Scan Density 10 Evasion (%) 54 Recoil Reduction 1 Item Schematics ----------------- None Robot Schematics ------------------ None Fabricated ------------ Nothing Repaired ---------- Wheel | 35% | -10/Materials Ion Engine | 45% | -10/Materials Mining Laser | 16% | -9/Materials Studied --------- None Alien Tech Used ----------------- None Achievements -------------- None Challenges ------------ None Game ------ Seed ResetTransportPit Manual? 0 Play Time 00:25:16 Cumulative 260.6 hours Start 2026.06.28 @ 16:06:09 End 2026.06.28 @ 16:29:24 Sessions 1 Manual Loads 0 Difficulty Rogue Special Mode None Game No. 402 Rogue 402 Adventurer 0 Explorer 0 Win Type - Total 0 Types 0/0/0/0/0/0/0/0/0/0 Lore% 50 Gallery% 50 Achievement% 31 Wizard Run 0 Options --------- Layout 0 ASCII 0 Keyboard 0 Movement Mouse Keybinds 0 Fullscreen 1 Font 18/SmallcapsGlow Map View 76x50 Zoom Use 0% Tactical HUD 1 Map Filters NONE Filters NONE Steam 1 RUN: 334b1b6f-d86e-414d-9081-585e40ab3694